fUST/lending_fUST_20250205
["ID","MTS","AMOUNT","RATE_DAILY","PERIOD"]
[351714638,1738762240817,-500.0,0.00015478,2]
[351714639,1738762240828,-500.0,0.00015478,2]
[351714640,1738762240837,-1174.56,0.00015478,2]
[351714641,1738762240846,-500.0,0.00015478,2]
[351714642,1738762240855,-500.0,0.00015478,2]
[351714643,1738762240865,-500.0,0.00015478,2]
[351714644,1738762240874,-1220.37,0.00015478,2]
[351714645,1738762240886,-814.2,0.00015478,2]
[351714646,1738762240895,-402.65032782,0.00015478,2]
[351714647,1738762240904,-220.24451567,0.00015478,2]
[351714648,1738762240913,-500.0,0.00015478,2]
[351714649,1738762240922,-500.0,0.00015478,2]
[351714650,1738762240931,-500.0,0.00015478,2]
[351714651,1738762240940,-500.0,0.00015478,2]
[351714652,1738762240951,-446.62244191,0.00015478,2]
[351714653,1738762240960,-500.0,0.00015478,2]
[351714654,1738762240971,-500.0,0.00015478,2]
[351714655,1738762240982,-708.05,0.00015478,2]
[351714656,1738762240991,-500.0,0.00015478,2]
[351714657,1738762241000,-500.0,0.00015478,2]
[351714658,1738762241009,-594.91,0.00015478,2]
[351714659,1738762241019,-41618.06,0.00015478,2]
[351714660,1738762241029,-500.0,0.00015478,2]
[351714661,1738762241038,-500.0,0.00015478,2]
[351714662,1738762241047,-500.0,0.00015478,2]
[351714663,1738762241057,-500.0,0.00015478,2]
[351714664,1738762241066,-650.6,0.00015478,2]
[351714665,1738762241075,-2732.02,0.00015478,2]
[351714666,1738762241084,-902.6,0.00015478,2]
[351714667,1738762241094,-500.0,0.00015478,2]
[351714668,1738762241104,-5671.82,0.00015478,2]
[351714669,1738762241113,-500.0,0.00015478,2]
[351714670,1738762241122,-500.0,0.00015478,2]
[351714671,1738762241132,-493.30802377,0.00015478,2]
[351714672,1738762241141,-126467.65,0.00015478,2]
[351714673,1738762241150,-500.0,0.00015478,2]
[351714674,1738762241159,-500.0,0.00015478,2]
[351714675,1738762241169,-500.0,0.00015478,2]
[351714676,1738762241178,-663.04,0.00015478,2]
[351714677,1738762241187,-502.5275146,0.00015478,2]
[351714678,1738762241197,-1658.39,0.00015478,2]
[351714679,1738762241206,-639.61989812,0.00015478,2]
[351714680,1738762241215,-5441.2,0.00015478,2]
[351714681,1738762241224,-500.0,0.00015478,2]
[351714682,1738762241234,-2816.85,0.00015478,2]
[351714683,1738762241243,-500.0,0.00015478,2]
[351714684,1738762241252,-1000.0,0.00015478,2]
[351714685,1738762241262,-500.0,0.00015478,2]
[351714686,1738762241271,-3087.48,0.00015478,2]
[351714687,1738762241280,-500.0,0.00015478,2]
[351714688,1738762241289,-862.37,0.00015478,2]
[351714689,1738762241299,-500.0,0.00015478,2]
[351714690,1738762241308,-501.94613288,0.00015478,2]
[351714691,1738762241317,-602.21471939,0.00015478,2]
[351714692,1738762241327,-500.0,0.00015478,2]
[351714693,1738762241336,-500.0,0.00015478,2]
[351714694,1738762241348,-500.0,0.00015478,2]
[351714695,1738762241360,-828.25,0.00015478,2]
[351714696,1738762241369,-867.65,0.00015478,2]
[351714697,1738762241379,-853.03,0.00015478,2]
[351714698,1738762241390,-500.0,0.00015478,2]
[351714699,1738762241400,-1874.7,0.00015478,2]
[351714700,1738762241409,-500.0,0.00015478,2]
[351714701,1738762241420,-500.0,0.00015478,2]
[351714702,1738762241431,-500.0,0.00015478,2]
[351714703,1738762241441,-500.0,0.00015478,2]
[351714704,1738762241451,-500.0,0.00015478,2]
[351714705,1738762241461,-478.70808972,0.00015478,2]
[351714706,1738762241470,-500.0,0.00015478,2]
[351714707,1738762241480,-500.0,0.00015478,2]
[351714708,1738762241490,-502.54326965,0.00015478,2]
[351714709,1738762241499,-188.0,0.00015478,2]
[351714710,1738762241508,-997.49,0.00015478,2]
[351714711,1738762241517,-500.0,0.00015478,2]
[351714712,1738762241527,-500.0,0.00015478,2]
[351714713,1738762241537,-500.0,0.00015478,2]
[351714714,1738762241547,-632.09,0.00015478,2]
[351714715,1738762241556,-500.0,0.00015478,2]
[351714716,1738762241566,-500.0,0.00015478,2]
[351714717,1738762241575,-500.0,0.00015478,2]
[351714718,1738762241584,-264.22260139,0.00015478,2]
[351714719,1738762241594,-502.62023992,0.00015478,2]
[351714720,1738762241604,-500.0,0.00015478,2]
[351714721,1738762241613,-500.0,0.00015478,2]
[351714722,1738762241623,-500.0,0.00015478,2]
[351714723,1738762241633,-35055.38,0.00015478,2]
[351714724,1738762241642,-500.0,0.00015478,2]
[351714725,1738762241652,-178.0216987,0.00015478,2]
[351714726,1738762241661,-500.0,0.00015478,2]
[351714727,1738762241671,-500.0,0.00015478,2]
[351714728,1738762241681,-500.0,0.00015478,2]
[351714729,1738762241691,-2991.92,0.00015478,2]
[351714730,1738762241700,-262.66160794,0.00015478,2]
[351714731,1738762241709,-300.0,0.00015478,2]
[351714732,1738762241719,-500.0,0.00015478,2]
[351714733,1738762241729,-500.0,0.00015478,2]
[351714734,1738762241739,-301.81898632,0.00015478,2]
[351714735,1738762241749,-566.24,0.00015478,2]
[351714736,1738762241759,-500.0,0.00015478,2]
[351714737,1738762241769,-500.0,0.00015478,2]
[351714738,1738762241778,-500.0,0.00015478,2]
[351714739,1738762241787,-500.0,0.00015478,2]
[351714740,1738762241796,-500.0,0.00015478,2]
[351714741,1738762241806,-559.52,0.00015478,2]
[351714742,1738762241815,-500.0,0.00015478,2]
[351714743,1738762241825,-1043.51,0.00015478,2]
[351714744,1738762241834,-500.0,0.00015478,2]
[351714745,1738762241845,-732.38,0.00015478,2]
[351714746,1738762241855,-500.0,0.00015478,2]
[351714747,1738762241865,-500.0,0.00015478,2]
[351714748,1738762241875,-500.0,0.00015478,2]
[351714749,1738762241887,-402.920899,0.00015478,2]
[351714750,1738762241897,-402.920899,0.00015478,2]
[351714751,1738762241906,-402.920899,0.00015478,2]
[351714752,1738762241916,-402.920899,0.00015478,2]
[351714753,1738762241927,-500.0,0.00015478,2]
[351714754,1738762241937,-402.920899,0.00015478,2]
[351714755,1738762241947,-402.920899,0.00015478,2]
[351714756,1738762241956,-500.0,0.00015478,2]
[351714757,1738762241965,-500.0,0.00015479,2]
[351714758,1738762241975,-1153.74,0.00015479,2]
[351714759,1738762241984,-500.0,0.00015479,2]
[351714760,1738762241994,-500.0,0.00015479,2]
[351714761,1738762242003,-500.0,0.00015479,2]
[351714762,1738762242012,-502.89173317,0.00015479,2]
[351714763,1738762242021,-635.36,0.00015479,2]
[351714764,1738762242031,-500.0,0.00015479,2]
[351714765,1738762242040,-502.68,0.00015479,2]
[351714766,1738762242050,-509.79,0.00015479,2]
[351714767,1738762242059,-748.48,0.00015479,2]
[351714768,1738762242068,-500.0,0.00015479,2]
[351714769,1738762242077,-500.0,0.00015479,2]
[351714770,1738762242086,-1786.97,0.00015479,2]
[351714771,1738762242096,-264.79835381,0.00015479,2]
[351714772,1738762242105,-500.0,0.00015479,2]
[351714773,1738762242116,-991.75,0.00015479,2]
[351714774,1738762242125,-464.87876989,0.00015479,2]
[351714775,1738762242136,-2135.87,0.00015479,2]
[351714776,1738762242145,-500.0,0.00015479,2]
[351714777,1738762242155,-500.0,0.00015479,2]
[351714778,1738762242164,-500.0,0.00015479,2]
[351714779,1738762242173,-500.0,0.00015479,2]
[351714780,1738762242182,-655.44,0.00015479,2]
[351714781,1738762242193,-833.33,0.00015479,2]
[351714782,1738762242202,-1065.85,0.00015479,2]
[351714783,1738762242211,-151.0,0.00015479,2]
[351714784,1738762242221,-550.25,0.00015479,2]
[351714785,1738762242230,-500.0,0.00015479,2]
[351714786,1738762242240,-500.0,0.00015479,2]
[351714787,1738762242249,-503.56299135,0.00015479,2]
[351714788,1738762242258,-1272.88,0.00015479,2]
[351714789,1738762242267,-500.0,0.00015479,2]
[351714790,1738762242276,-500.0,0.00015479,2]
[351714791,1738762242286,-500.0,0.00015479,2]
[351714792,1738762242295,-3850.1,0.00015479,2]
[351714793,1738762242304,-500.0,0.00015479,2]
[351714794,1738762242314,-500.0,0.00015479,2]
[351714795,1738762242323,-500.0,0.00015479,2]
[351714796,1738762242333,-4190.82,0.00015479,2]
[351714797,1738762242343,-232.80063,0.00015479,2]
[351714798,1738762242358,-500.0,0.00015479,2]
[351714799,1738762242367,-500.0,0.00015479,2]
[351714801,1738762242377,-827.02,0.00015479,2]
[351714802,1738762242388,-1127.0,0.00015479,2]
[351714804,1738762242397,-207.976094,0.00015479,2]
[351714805,1738762242407,-207.976094,0.00015479,2]
[351714806,1738762242416,-1108.5,0.00015479,2]
[351714807,1738762242425,-500.0,0.00015479,2]
[351714808,1738762242434,-659.4,0.00015479,2]
[351714810,1738762242445,-500.0,0.00015479,2]
[351714811,1738762242455,-500.0,0.00015479,2]
[351714812,1738762242464,-1210.39,0.00015479,2]
[351714813,1738762242474,-500.0,0.00015479,2]
[351714814,1738762242483,-1366.59,0.00015479,2]
[351714815,1738762242493,-500.0,0.00015479,2]
[351714816,1738762242502,-934.62,0.00015479,2]
[351714817,1738762242511,-500.0,0.00015479,2]
[351714818,1738762242521,-500.0,0.00015479,2]
[351714819,1738762242530,-1129.2,0.00015479,2]
[351714820,1738762242540,-500.0,0.00015479,2]
[351714821,1738762242548,-500.0,0.00015479,2]
[351714822,1738762242558,-500.0,0.00015479,2]
[351714823,1738762242567,-500.0,0.00015479,2]
[351714824,1738762242577,-639.76,0.00015479,2]
[351714826,1738762242587,-500.0,0.00015479,2]
[351714828,1738762242596,-151.0,0.0001548,2]
[351714830,1738762242607,-151.0,0.0001548,2]
[351714833,1738762242616,-151.0,0.0001548,2]
[351714836,1738762242625,-9775.27679316,0.00015502,2]
[351714838,1738762242637,-1879.86,0.00015577,2]
[351714840,1738762242646,-500.0,0.00015577,2]
[351714841,1738762242656,-505.45721231,0.00015577,2]
[351714844,1738762242665,-500.0,0.00015577,2]
[351714845,1738762242674,-500.0,0.00015577,2]
[351714848,1738762242683,-1001.53,0.00015577,2]
[351714850,1738762242693,-500.0,0.00015577,2]
[351714851,1738762242703,-500.0,0.00015577,2]
[351714854,1738762242712,-1000.0,0.00015577,2]
[351714856,1738762242724,-780.35,0.00015577,2]
[351714858,1738762242734,-500.0,0.00015577,2]
[351714859,1738762242743,-500.0,0.00015577,2]
[351714862,1738762242753,-500.0,0.00015577,2]
[351714864,1738762242762,-500.0,0.00015577,2]
[351714865,1738762242771,-500.0,0.00015577,2]
[351714867,1738762242781,-500.0,0.00015577,2]
[351714868,1738762242790,-500.0,0.00015577,2]
[351714869,1738762242799,-500.0,0.00015577,2]
[351714871,1738762242809,-500.0,0.00015577,2]
[351714873,1738762242818,-500.0,0.00015577,2]
[351714875,1738762242828,-500.0,0.00015577,2]
[351714877,1738762242837,-500.0,0.00015577,2]
[351714879,1738762242847,-500.0,0.00015577,2]
[351714881,1738762242857,-500.0,0.00015577,2]
[351714883,1738762242865,-500.0,0.00015577,2]
[351714885,1738762242874,-500.0,0.00015577,2]
[351714887,1738762242884,-500.0,0.00015577,2]
[351714889,1738762242893,-500.0,0.00015577,2]
[351714891,1738762242903,-500.0,0.00015577,2]
[351714893,1738762242912,-514.99960741,0.00015577,2]
[351714895,1738762242922,-500.0,0.00015577,2]
[351714897,1738762242931,-500.0,0.00015577,2]
[351714899,1738762242940,-500.0,0.00015577,2]
[351714901,1738762242950,-500.0,0.00015577,2]
[351714903,1738762242959,-500.0,0.00015577,2]
[351714905,1738762242969,-500.0,0.00015577,2]
[351714907,1738762242978,-1421.83,0.00015577,2]
[351714909,1738762242987,-500.0,0.00015577,2]
[351714911,1738762242996,-500.0,0.00015577,2]
[351714913,1738762243005,-507.95164527,0.00015577,2]
[351714915,1738762243015,-500.0,0.00015577,2]
[351714917,1738762243024,-500.0,0.00015577,2]
[351714936,1738762243156,-502.94517475,0.00015577,2]
[351714940,1738762243186,-500.0,0.00015577,2]
[351714943,1738762243196,-795.11,0.00015577,2]
[351714946,1738762243206,-302.68106921,0.00015577,2]
[351714949,1738762243215,-500.0,0.00015577,2]
[351714951,1738762243225,-500.0,0.00015577,2]
[351714953,1738762243234,-500.0,0.00015577,2]
[351714955,1738762243243,-1015.33,0.00015577,2]
[351714957,1738762243254,-500.0,0.00015577,2]
[351714959,1738762243264,-500.0,0.00015577,2]
[351714961,1738762243273,-500.0,0.00015577,2]
[351714963,1738762243283,-500.0,0.00015577,2]
[351714965,1738762243292,-578.52610759,0.00015577,2]
[351714967,1738762243302,-500.0,0.00015577,2]
[351714969,1738762243311,-597.24,0.00015577,2]
[351714971,1738762243321,-500.0,0.00015577,2]
[351714973,1738762243330,-505.09044525,0.00015577,2]
[351714975,1738762243339,-500.0,0.00015577,2]
[351714977,1738762243352,-500.0,0.00015577,2]
[351714979,1738762243362,-500.0,0.00015577,2]
[351714981,1738762243371,-510.55742378,0.00015577,2]
[351714983,1738762243381,-642.07,0.00015577,2]
[351714985,1738762243394,-500.0,0.00015577,2]
[351714987,1738762243403,-1989.35,0.00015577,2]
[351714989,1738762243412,-500.0,0.00015577,2]
[351714991,1738762243422,-500.0,0.00015577,2]
[351714993,1738762243432,-597.31,0.00015577,2]
[351714995,1738762243441,-500.0,0.00015577,2]
[351714997,1738762243451,-500.49649601,0.00015577,2]
[351714999,1738762243460,-500.0,0.00015577,2]
[351715001,1738762243469,-511.95,0.00015577,2]
[351715003,1738762243478,-775.79,0.00015577,2]
[351715005,1738762243487,-500.0,0.00015577,2]
[351715007,1738762243496,-3692.05,0.00015577,2]
[351715009,1738762243505,-1212.76,0.00015577,2]
[351715011,1738762243515,-207.976094,0.00015577,2]
[351715013,1738762243524,-207.976094,0.00015577,2]
[351715015,1738762243535,-402.920899,0.00015577,2]
[351715017,1738762243544,-402.920899,0.00015577,2]
[351715019,1738762243554,-433.31771785,0.00015578,2]
[351715021,1738762243563,-500.0,0.00015578,2]
[351715023,1738762243573,-500.0,0.00015578,2]
[351715025,1738762243582,-450.83655582,0.00015578,2]
[351715027,1738762243591,-512.05640131,0.00015578,2]
[351715029,1738762243600,-500.0,0.00015578,2]
[351715031,1738762243610,-500.0,0.00015578,2]
[351715033,1738762243619,-425.6959943,0.00015578,2]
[351715035,1738762243628,-500.0,0.00015578,2]
[351715037,1738762243639,-500.0,0.00015578,2]
[351715039,1738762243649,-179.2314426,0.00015578,2]
[351715041,1738762243658,-500.0,0.00015578,2]
[351715043,1738762243668,-500.0,0.00015578,2]
[351715045,1738762243678,-500.0,0.00015578,2]
[351715047,1738762243687,-500.0,0.00015578,2]
[351715049,1738762243697,-515.09877908,0.00015578,2]
[351715051,1738762243706,-500.0,0.00015578,2]
[351715053,1738762243716,-151.0,0.00015578,2]
[351715055,1738762243726,-500.0,0.00015578,2]
[351715057,1738762243736,-500.0,0.00015578,2]
[351715059,1738762243746,-500.0,0.00015578,2]
[351715061,1738762243755,-500.0,0.00015578,2]
[351715063,1738762243763,-1809.65,0.00015578,2]
[351715065,1738762243773,-604.47,0.00015578,2]
[351715067,1738762243782,-500.0,0.00015578,2]
[351715069,1738762243791,-500.0,0.00015578,2]
[351715071,1738762243799,-1007.91,0.00015578,2]
[351715073,1738762243808,-702.94,0.00015578,2]
[351715075,1738762243817,-500.0,0.00015578,2]
[351715077,1738762243827,-151.0,0.00015578,2]
[351715079,1738762243836,-500.0,0.00015578,2]
[351715081,1738762243845,-500.0,0.00015578,2]
[351715083,1738762243854,-500.0,0.00015578,2]
[351715085,1738762243864,-500.0,0.00015578,2]
[351715086,1738762243873,-1020.82,0.00015578,2]
[351715088,1738762243883,-500.0,0.00015578,2]
[351715090,1738762243892,-438.22386094,0.00015578,2]
[351715093,1738762243901,-500.0,0.00015578,2]
[351715095,1738762243911,-500.0,0.00015578,2]
[351715097,1738762243921,-1072.35,0.00015578,2]
[351715099,1738762243931,-151.0,0.00015578,2]
[351715101,1738762243940,-500.0,0.00015578,2]
[351715103,1738762243950,-211.74345682,0.00015578,2]
[351715105,1738762243960,-503.79388325,0.00015578,2]
[351715107,1738762243969,-500.0,0.00015578,2]
[351715109,1738762243978,-151.0,0.00015578,2]
[351715111,1738762243987,-402.920899,0.00015578,2]
[351715113,1738762243996,-402.920899,0.00015578,2]
[351715115,1738762244005,-500.0,0.00015579,2]
[351715117,1738762244015,-151.0,0.00015579,2]
[351715119,1738762244024,-151.0,0.00015579,2]
[351715121,1738762244034,-151.0,0.00015579,2]
[351715123,1738762244043,-151.0,0.0001558,2]
[351715125,1738762244052,-151.0,0.0001558,2]
[351715127,1738762244062,-151.0,0.00015581,2]
[351715129,1738762244071,-151.0,0.00015581,2]
[351715131,1738762244079,-154.055312,0.00015581,2]
[351715133,1738762244089,-207.976094,0.00015581,2]
[351715135,1738762244098,-207.976094,0.00015581,2]
[351715137,1738762244108,-500.0,0.00015611,2]
[351715139,1738762244117,-1578.57,0.00015611,2]
[351715141,1738762244127,-6604.76,0.00015611,2]
[351715143,1738762244137,-2697.99,0.00015611,2]
[351715145,1738762244146,-500.0,0.00015611,2]
[351715147,1738762244155,-3911.07,0.00015611,2]
[351715149,1738762244165,-1365.38,0.00015611,2]
[351715151,1738762244174,-967.04,0.00015611,2]
[351715153,1738762244184,-241.93924444,0.00015611,2]
[351715155,1738762244193,-500.0,0.00015611,2]
[351715157,1738762244203,-500.0,0.00015611,2]
[351715159,1738762244212,-563.47,0.00015611,2]
[351715161,1738762244221,-366.57653058,0.00015611,2]
[351715163,1738762244231,-876.66,0.00015613,2]
[351715165,1738762244241,-908.4,0.00015613,2]
[351715167,1738762244250,-500.0,0.00015613,2]
[351715169,1738762244260,-11291.17,0.00015613,2]
[351715171,1738762244270,-990.15,0.00015613,2]
[351715173,1738762244279,-533.99,0.00015613,2]
[351715175,1738762244288,-18527.06,0.00015613,2]
[351715177,1738762244298,-654.35,0.00015613,2]
[351715179,1738762244307,-6770.95,0.00015613,2]
[351715181,1738762244317,-500.0,0.00015613,2]
[351715183,1738762244326,-8920.75,0.00015613,2]
[351715185,1738762244336,-3873.05,0.00015613,2]
[351715187,1738762244349,-500.0,0.00015613,2]
[351715189,1738762244359,-500.0,0.00015613,2]
[351715191,1738762244369,-2980.54,0.00015613,2]
[351715193,1738762244379,-1302.9,0.00015613,2]
[351715195,1738762244390,-625.69,0.00015613,2]
[351715197,1738762244400,-500.0,0.00015613,2]
[351715199,1738762244410,-1238.88,0.00015613,2]
[351715201,1738762244420,-500.0,0.00015613,2]
[351715203,1738762244431,-500.0,0.00015613,2]
[351715205,1738762244442,-1015.14,0.00015613,2]
[351715207,1738762244451,-3228.08,0.00015613,2]
[351715209,1738762244460,-3088.01,0.00015613,2]
[351715211,1738762244470,-7930.55,0.00015613,2]
[351715213,1738762244480,-12931.27,0.00015613,2]
[351715216,1738762244489,-632.73,0.00015613,2]
[351715217,1738762244499,-626.28,0.00015613,2]
[351715220,1738762244508,-1156.54,0.00015614,2]
[351715221,1738762244517,-500.0,0.00015614,2]
[351715224,1738762244527,-592.83,0.00015614,2]
[351715225,1738762244536,-2131.78,0.00015614,2]
[351715227,1738762244545,-3475.05,0.00015614,2]
[351715229,1738762244554,-530.96,0.00015614,2]
[351715231,1738762244564,-500.0,0.00015614,2]
[351715233,1738762244573,-500.0,0.00015614,2]
[351715236,1738762244583,-1588.77,0.00015614,2]
[351715238,1738762244593,-1488.74,0.00015614,2]
[351715240,1738762244602,-2559.54,0.00015614,2]
[351715242,1738762244611,-1037.21,0.00015614,2]
[351715244,1738762244621,-1259.01,0.00015614,2]
[351715246,1738762244631,-500.0,0.00015614,2]
[351715247,1738762244643,-500.0,0.00015614,2]
[351715249,1738762244652,-500.0,0.00015614,2]
[351715252,1738762244662,-500.0,0.00015614,2]
[351715254,1738762244672,-1717.42,0.00015614,2]
[351715255,1738762244682,-519.29,0.00015614,2]
[351715257,1738762244691,-663.68,0.00015614,2]
[351715259,1738762244700,-500.0,0.00015614,2]
[351715261,1738762244710,-1187.34,0.00015614,2]
[351715264,1738762244720,-2650.55,0.00015614,2]
[351715266,1738762244729,-1820.73,0.00015614,2]
[351715268,1738762244738,-1031.56,0.00015614,2]
[351715270,1738762244748,-1645.43,0.00015614,2]
[351715272,1738762244759,-500.0,0.00015614,2]
[351715274,1738762244768,-854.13,0.00015614,2]
[351715276,1738762244778,-500.0,0.00015614,2]
[351715278,1738762244787,-500.0,0.00015614,2]
[351715280,1738762244796,-1580.38,0.00015614,2]
[351715282,1738762244806,-500.0,0.00015614,2]
[351715284,1738762244815,-500.0,0.00015614,2]
[351715286,1738762244824,-679.68,0.00015614,2]
[351715288,1738762244833,-1108.91,0.00015614,2]
[351715290,1738762244843,-500.0,0.00015614,2]
[351715292,1738762244853,-812.79,0.00015614,2]
[351715294,1738762244862,-500.0,0.00015614,2]
[351715296,1738762244871,-500.0,0.00015614,2]
[351715298,1738762244881,-2114.3,0.00015614,2]
[351715300,1738762244891,-500.0,0.00015614,2]
[351715302,1738762244900,-3210.64,0.00015614,2]
[351715304,1738762244910,-823.98,0.00015614,2]
[351715306,1738762244919,-9887.51,0.00015614,2]
[351715308,1738762244928,-3558.22,0.00015614,2]
[351715310,1738762244938,-4726.84,0.00015614,2]
[351715312,1738762244947,-500.0,0.00015614,2]
[351715314,1738762244956,-4080.62,0.00015614,2]
[351715316,1738762244965,-500.0,0.00015614,2]
[351715318,1738762244975,-500.0,0.00015614,2]
[351715320,1738762244984,-500.0,0.00015614,2]
[351715322,1738762244993,-414.03719197,0.00015614,2]
[351715324,1738762245002,-495.71475009,0.00015614,2]
[351715326,1738762245011,-500.0,0.00015614,2]
[351715328,1738762245020,-500.0,0.00015614,2]
[351715330,1738762245030,-1394.99,0.00015614,2]
[351715332,1738762245039,-2936.92,0.00015614,2]
[351715334,1738762245049,-656.19,0.00015614,2]
[351715336,1738762245058,-500.0,0.00015614,2]
[351715338,1738762245067,-4117.99,0.00015614,2]
[351715340,1738762245076,-500.0,0.00015614,2]
[351715342,1738762245085,-1411.42,0.00015614,2]
[351715344,1738762245094,-1440.9,0.00015614,2]
[351715346,1738762245103,-982.98,0.00015614,2]
[351715348,1738762245112,-500.0,0.00015614,2]
[351715350,1738762245121,-500.0,0.00015614,2]
[351715352,1738762245130,-500.0,0.00015614,2]
[351715354,1738762245141,-500.0,0.00015614,2]
[351715356,1738762245150,-653.94,0.00015614,2]
[351715358,1738762245159,-668.99,0.00015614,2]
[351715360,1738762245168,-1514.7,0.00015614,2]
[351715362,1738762245178,-8275.04,0.00015614,2]
[351715364,1738762245187,-1106.76,0.00015614,2]
[351715366,1738762245197,-500.0,0.00015614,2]
[351715368,1738762245206,-500.0,0.00015614,2]
[351715370,1738762245215,-1585.42,0.00015614,2]
[351715372,1738762245224,-500.0,0.00015614,2]
[351715374,1738762245233,-657.43,0.00015614,2]
[351715376,1738762245243,-1302.84,0.00015614,2]
[351715378,1738762245252,-500.0,0.00015614,2]
[351715380,1738762245261,-500.0,0.00015614,2]
[351715382,1738762245271,-500.0,0.00015614,2]
[351715384,1738762245281,-3069.18,0.00015614,2]
[351715386,1738762245290,-500.0,0.00015614,2]
[351715388,1738762245300,-698.62,0.00015614,2]
[351715390,1738762245309,-988.45,0.00015614,2]
[351715392,1738762245318,-1750.73,0.00015614,2]
[351715394,1738762245327,-178.00689569,0.00015614,2]
[351715396,1738762245336,-326.52367571,0.00015614,2]
[351715398,1738762245349,-500.0,0.00015614,2]
[351715400,1738762245363,-500.0,0.00015614,2]
[351715402,1738762245375,-514.94,0.00015614,2]
[351715404,1738762245388,-500.0,0.00015614,2]
[351715406,1738762245398,-500.0,0.00015614,2]
[351715407,1738762245407,-500.0,0.00015614,2]
[351715408,1738762245416,-500.0,0.00015614,2]
[351715409,1738762245427,-573.81,0.00015614,2]
[351715410,1738762245436,-500.0,0.00015614,2]
[351715411,1738762245445,-500.0,0.00015614,2]
[351715412,1738762245454,-8083.43,0.00015614,2]
[351715413,1738762245463,-500.0,0.00015614,2]
[351715414,1738762245472,-500.0,0.00015614,2]
[351715415,1738762245482,-584.83,0.00015614,2]
[351715416,1738762245491,-500.0,0.00015614,2]
[351715417,1738762245500,-500.0,0.00015614,2]
[351715418,1738762245509,-500.0,0.00015614,2]
[351715419,1738762245518,-402.920899,0.00015614,2]
[351715420,1738762245527,-402.920899,0.00015614,2]
[351715421,1738762245536,-500.0,0.00015614,2]
[351715422,1738762245545,-402.920899,0.00015614,2]
[351715423,1738762245554,-402.920899,0.00015614,2]
[351715424,1738762245563,-500.0,0.00015614,2]
[351715425,1738762245572,-500.0,0.00015615,2]
[351715426,1738762245581,-500.0,0.00015615,2]
[351715427,1738762245590,-500.0,0.00015615,2]
[351715429,1738762245599,-500.0,0.00015615,2]
[351715431,1738762245609,-500.0,0.00015615,2]
[351715433,1738762245618,-500.0,0.00015615,2]
[351715435,1738762245628,-500.0,0.00015615,2]
[351715437,1738762245639,-500.0,0.00015615,2]
[351715439,1738762245648,-500.0,0.00015615,2]
[351715441,1738762245658,-500.0,0.00015615,2]
[351715443,1738762245668,-500.0,0.00015615,2]
[351715445,1738762245677,-500.0,0.00015615,2]
[351715447,1738762245686,-553.84,0.00015615,2]
[351715449,1738762245696,-500.0,0.00015615,2]
[351715451,1738762245705,-621.73,0.00015615,2]
[351715453,1738762245714,-500.0,0.00015615,2]
[351715455,1738762245723,-500.0,0.00015615,2]
[351715457,1738762245732,-500.0,0.00015615,2]